fUSD/lending_fUSD_20260529
["ID","MTS","AMOUNT","RATE_DAILY","PERIOD"]
[423270615,1780009850000,-423.9,0.00027702,30]
[423270622,1780009850000,-231.25384871,0.00027724,2]
[423270616,1780009850000,-5194.45,0.00027711,7]
[423270614,1780009850000,-387.55,0.00027702,30]
[423270620,1780009850000,-3150.17,0.00027711,7]
[423270619,1780009850000,-5194.39,0.00027711,7]
[423270621,1780009850000,-5879.6,0.00027711,7]
[423270618,1780009850000,-3149.57,0.00027711,7]
[423270617,1780009850000,-5879.07,0.00027711,7]
[423270634,1780009850000,-3640.04,0.000278,7]
[423270611,1780009850000,-1479.0,0.00027666,30]
[423270627,1780009850000,-387.55,0.00027763,7]
[423270637,1780009850000,-387.55,0.00027824,2]
[423270638,1780009850000,-423.9,0.00027824,2]
[423270636,1780009850000,-151.90945559,0.00027823,2]
[423270631,1780009850000,-387.55,0.00027794,30]
[423270623,1780009850000,-387.55,0.00027733,2]
[423270633,1780009850000,-560.67,0.00027799,30]
[423270632,1780009850000,-423.9,0.00027794,30]
[423270625,1780009850000,-7750.54506819,0.00027757,2]
[423270635,1780009850000,-4672.36,0.000278,7]
[423270629,1780009850000,-152.0,0.00027767,9]
[423270630,1780009850000,-152.0,0.00027767,3]
[423270624,1780009850000,-423.9,0.00027733,2]
[423270628,1780009850000,-423.9,0.00027763,7]
[423270626,1780009850000,-5000.0,0.00027757,2]
[423270716,1780009851000,-151.503986,0.00028033,7]
[423270715,1780009851000,-151.0,0.00028033,7]
[423270713,1780009851000,-151.503986,0.00028033,7]
[423270712,1780009851000,-1137.284718,0.00028033,7]
[423270705,1780009851000,-1295.476588,0.00028007,7]
[423270708,1780009851000,-3637.0,0.0002802,2]
[423270704,1780009851000,-1295.476588,0.00028007,7]
[423270703,1780009851000,-1295.476588,0.00028007,7]
[423270706,1780009851000,-387.55,0.00028007,2]
[423270707,1780009851000,-423.9,0.00028007,2]
[423270710,1780009851000,-150.0,0.00028033,30]
[423270714,1780009851000,-1137.284718,0.00028033,7]
[423270721,1780009851000,-5879.07,0.00028033,30]
[423270718,1780009851000,-151.503986,0.00028033,7]
[423270711,1780009851000,-151.503986,0.00028033,7]
[423270720,1780009851000,-5194.45,0.00028033,30]
[423270717,1780009851000,-1137.284718,0.00028033,7]
[423270722,1780009851000,-3149.57,0.00028033,30]
[423270725,1780009851000,-343.542752,0.00028033,7]
[423270723,1780009851000,-343.542752,0.00028033,7]
[423270726,1780009851000,-151.0,0.00028033,7]
[423270724,1780009851000,-151.0,0.00028033,7]
[423270734,1780009851000,-4101.394339,0.00028033,7]
[423270729,1780009851000,-343.542752,0.00028033,7]
[423270735,1780009851000,-169.952748,0.00028033,7]
[423270700,1780009851000,-300.787183,0.00028007,7]
[423270719,1780009851000,-1137.284718,0.00028033,7]
[423270698,1780009851000,-300.787183,0.00028007,7]
[423270688,1780009851000,-423.9,0.00027977,30]
[423270702,1780009851000,-1295.476588,0.00028007,7]
[423270728,1780009851000,-151.0,0.00028033,7]
[423270672,1780009851000,-5879.6,0.00027872,2]
[423270674,1780009851000,-200.0,0.00027873,30]
[423270673,1780009851000,-200.0,0.00027873,30]
[423270676,1780009851000,-343.0,0.00027873,30]
[423270675,1780009851000,-200.0,0.00027873,30]
[423270683,1780009851000,-1353.20417073,0.00027923,2]
[423270684,1780009851000,-200.0,0.00027923,2]
[423270679,1780009851000,-2241.0,0.000279,2]
[423270678,1780009851000,-423.9,0.00027885,30]
[423270677,1780009851000,-387.55,0.00027885,30]
[423270682,1780009851000,-1525.82551498,0.00027918,7]
[423270680,1780009851000,-387.55,0.00027916,2]
[423270701,1780009851000,-300.787183,0.00028007,7]
[423270681,1780009851000,-423.9,0.00027916,2]
[423270685,1780009851000,-387.55,0.00027946,7]
[423270694,1780009851000,-600.0,0.00028,2]
[423270691,1780009851000,-160.0,0.00028,10]
[423270689,1780009851000,-150.0,0.0002798,2]
[423270692,1780009851000,-200.0,0.00028,20]
[423270693,1780009851000,-209.03147293,0.00028,3]
[423270690,1780009851000,-1225.0,0.00027985,2]
[423270695,1780009851000,-160.0,0.00028,7]
[423270697,1780009851000,-209.03147293,0.00028,10]
[423270696,1780009851000,-209.03147293,0.00028,30]
[423270686,1780009851000,-423.9,0.00027946,7]
[423270709,1780009851000,-6064.0,0.0002802,2]
[423270699,1780009851000,-300.787183,0.00028007,7]
[423270687,1780009851000,-387.55,0.00027977,30]
[423270730,1780009851000,-4101.394339,0.00028033,7]
[423270733,1780009851000,-4101.394339,0.00028033,7]
[423270732,1780009851000,-169.952748,0.00028033,7]
[423270768,1780009851000,-898.994,0.00028056,7]
[423270766,1780009851000,-898.994,0.00028056,7]
[423270767,1780009851000,-517.749427,0.00028056,7]
[423270769,1780009851000,-517.749427,0.00028056,7]
[423270770,1780009851000,-898.994,0.00028056,7]
[423270773,1780009851000,-2000.0,0.0002808,2]
[423270783,1780009851000,-151.0,0.00028082,7]
[423270782,1780009851000,-1251.149205,0.00028082,7]
[423270772,1780009851000,-423.9,0.00028068,30]
[423270776,1780009851000,-158.55,0.00028082,7]
[423270774,1780009851000,-200.0,0.0002808,2]
[423270775,1780009851000,-158.55,0.00028082,7]
[423270780,1780009851000,-1251.149205,0.00028082,7]
[423270778,1780009851000,-158.55,0.00028082,7]
[423270777,1780009851000,-158.55,0.00028082,7]
[423270781,1780009851000,-1251.149205,0.00028082,7]
[423270779,1780009851000,-1251.149205,0.00028082,7]
[423270785,1780009851000,-150.0,0.00028082,2]
[423270784,1780009851000,-280.054056,0.00028082,7]
[423270787,1780009851000,-302.46,0.00028082,2]
[423270789,1780009851000,-452.44755142,0.00028082,120]
[423270788,1780009851000,-356.61535055,0.00028082,2]
[423270786,1780009851000,-213.0,0.00028082,2]
[423270790,1780009851000,-1000.0,0.00028082,120]
[423270792,1780009851000,-1000.0,0.00028082,3]
[423270793,1780009851000,-1000.0,0.00028082,3]
[423270727,1780009851000,-343.542752,0.00028033,7]
[423270765,1780009851000,-517.749427,0.00028056,7]
[423270763,1780009851000,-898.994,0.00028056,7]
[423270791,1780009851000,-1000.0,0.00028082,120]
[423270762,1780009851000,-151.0,0.00028056,7]
[423270764,1780009851000,-517.749427,0.00028056,7]
[423270737,1780009851000,-169.952748,0.00028033,7]
[423270748,1780009851000,-217.0,0.00028056,30]
[423270746,1780009851000,-150.0,0.00028056,30]
[423270747,1780009851000,-243.0,0.00028056,30]
[423270736,1780009851000,-4101.394339,0.00028033,7]
[423270740,1780009851000,-5879.6,0.00028033,30]
[423270739,1780009851000,-3150.17,0.00028033,30]
[423270742,1780009851000,-423.9,0.00028038,7]
[423270738,1780009851000,-5194.39,0.00028033,30]
[423270745,1780009851000,-150.0,0.00028056,30]
[423270741,1780009851000,-387.55,0.00028038,7]
[423270744,1780009851000,-150.0,0.00028056,30]
[423270743,1780009851000,-150.0,0.00028056,30]
[423270731,1780009851000,-169.952748,0.00028033,7]
[423270751,1780009851000,-270.0,0.00028056,30]
[423270749,1780009851000,-150.0,0.00028056,30]
[423270760,1780009851000,-151.0,0.00028056,7]
[423270761,1780009851000,-666.725847,0.00028056,7]
[423270758,1780009851000,-666.725847,0.00028056,7]
[423270759,1780009851000,-666.725847,0.00028056,7]
[423270757,1780009851000,-666.725847,0.00028056,7]
[423270771,1780009851000,-387.55,0.00028068,30]
[423270755,1780009851000,-151.0,0.00028056,7]
[423270753,1780009851000,-150.0,0.00028056,30]
[423270754,1780009851000,-217.62247056,0.00028056,30]
[423270750,1780009851000,-150.0,0.00028056,30]
[423270752,1780009851000,-203.35487601,0.00028056,30]
[423270756,1780009851000,-151.0,0.00028056,7]
[423270833,1780009852000,-150.0,0.0002818,2]
[423270834,1780009852000,-150.0,0.0002818,2]
[423270837,1780009852000,-1272.0,0.0002818,2]
[423270836,1780009852000,-525.0,0.0002818,2]
[423270831,1780009852000,-150.0,0.0002818,2]
[423270830,1780009852000,-150.0,0.0002818,2]
[423270829,1780009852000,-150.0,0.0002818,2]
[423270828,1780009852000,-151.0,0.0002818,7]
[423270827,1780009852000,-151.0,0.0002818,7]
[423270835,1780009852000,-1356.0,0.0002818,2]
[423270826,1780009852000,-151.0,0.0002818,7]
[423270825,1780009852000,-288.517612,0.0002818,7]
[423270847,1780009852000,-200.0,0.00028202,2]
[423270838,1780009852000,-5194.45,0.00028194,7]
[423270845,1780009852000,-3640.04,0.000282,7]
[423270839,1780009852000,-3149.57,0.00028194,7]
[423270849,1780009852000,-217.62247056,0.00028267,2]
[423270842,1780009852000,-3150.17,0.00028194,7]
[423270841,1780009852000,-5194.39,0.00028194,7]
[423270850,1780009852000,-6512.8,0.00028267,2]
[423270848,1780009852000,-164.0,0.00028207,120]
[423270844,1780009852000,-151.36795374,0.000282,7]
[423270846,1780009852000,-4672.36,0.000282,7]
[423270840,1780009852000,-5879.07,0.00028194,7]
[423270843,1780009852000,-5879.6,0.00028194,7]
[423270810,1780009852000,-620.0,0.00028175,120]
[423270832,1780009852000,-150.0,0.0002818,2]
[423270816,1780009852000,-493.162796,0.0002818,7]
[423270802,1780009852000,-387.55,0.00028099,2]
[423270812,1780009852000,-288.449143,0.0002818,7]
[423270795,1780009852000,-1000.0,0.00028082,3]
[423270796,1780009852000,-1000.0,0.00028082,3]
[423270794,1780009852000,-1000.0,0.00028082,3]
[423270797,1780009852000,-1000.0,0.00028082,3]
[423270799,1780009852000,-1000.0,0.00028082,3]
[423270809,1780009852000,-500.0,0.00028146,120]
[423270803,1780009852000,-423.9,0.00028099,2]
[423270806,1780009852000,-839.6,0.00028123,120]
[423270800,1780009852000,-1000.0,0.00028082,3]
[423270804,1780009852000,-269.0,0.000281,30]
[423270798,1780009852000,-1000.0,0.00028082,3]
[423270801,1780009852000,-1000.0,0.00028082,3]
[423270818,1780009852000,-493.162796,0.0002818,7]
[423270807,1780009852000,-387.58,0.0002813,7]
[423270808,1780009852000,-424.07,0.0002813,7]
[423270811,1780009852000,-288.449143,0.0002818,7]
[423270821,1780009852000,-371.859056,0.0002818,7]
[423270822,1780009852000,-371.859056,0.0002818,7]
[423270823,1780009852000,-151.0,0.0002818,7]
[423270824,1780009852000,-151.0,0.0002818,7]
[423270814,1780009852000,-288.449143,0.0002818,7]
[423270813,1780009852000,-288.449143,0.0002818,7]
[423270820,1780009852000,-371.859056,0.0002818,7]
[423270819,1780009852000,-371.859056,0.0002818,7]
[423270817,1780009852000,-493.162796,0.0002818,7]
[423270815,1780009852000,-493.162796,0.0002818,7]
[423270805,1780009852000,-1542.91,0.000281,14]
[423270851,1780009852000,-152.0,0.00028281,10]
[423270861,1780009852000,-213.0,0.00028374,120]
[423270864,1780009852000,-397.25,0.00028452,7]
[423270882,1780009852000,-181.02964778,0.00028489,7]
[423270884,1780009852000,-156.05264156,0.00028489,7]
[423270883,1780009852000,-153.74561038,0.00028489,7]
[423270885,1780009852000,-200.2470151,0.00028489,7]
[423270887,1780009852000,-178.31117939,0.00028491,7]
[423270890,1780009852000,-187.64296938,0.00028494,7]
[423270891,1780009852000,-177.01374539,0.00028494,7]
[423270901,1780009852000,-217.31294506,0.00028494,7]
[423270902,1780009852000,-150.4127237,0.00028494,7]
[423270892,1780009852000,-152.6458747,0.00028494,7]
[423270893,1780009852000,-170.31405338,0.00028494,7]
[423270895,1780009852000,-202.12850095,0.00028494,7]
[423270886,1780009852000,-315.52989302,0.00028489,7]
[423270894,1780009852000,-197.0236393,0.00028494,7]
[423270896,1780009852000,-190.21955366,0.00028494,7]
[423270897,1780009852000,-158.76099832,0.00028494,7]
[423270900,1780009852000,-207.30680841,0.00028494,7]
[423270904,1780009852000,-176.83064221,0.00028494,7]
[423270903,1780009852000,-169.30204227,0.00028494,7]
[423270906,1780009852000,-152.92892779,0.00028494,7]
[423270908,1780009852000,-154.42123787,0.00028494,7]
[423270905,1780009852000,-162.78064956,0.00028494,7]
[423270907,1780009852000,-153.36742247,0.00028494,7]
[423270910,1780009852000,-161.94603864,0.00028494,7]
[423270909,1780009852000,-177.24242338,0.00028494,7]
[423270852,1780009852000,-1056.9,0.00028314,7]
[423270898,1780009852000,-158.54651692,0.00028494,7]
[423270880,1780009852000,-158.919657,0.00028489,7]
[423270899,1780009852000,-174.94521755,0.00028494,7]
[423270879,1780009852000,-190.60541571,0.00028489,7]
[423270881,1780009852000,-160.49037688,0.00028489,7]
[423270863,1780009852000,-1904.0,0.00028418,120]
[423270853,1780009852000,-1495.17,0.00028314,7]
[423270855,1780009852000,-568.32,0.00028314,7]
[423270854,1780009852000,-1033.06,0.00028314,7]
[423270858,1780009852000,-2420.0,0.00028338,120]
[423270860,1780009852000,-1476.0,0.00028342,120]
[423270862,1780009852000,-200.0,0.000284,2]
[423270857,1780009852000,-3413.0,0.00028334,120]
[423270856,1780009852000,-164.0,0.00028314,120]
[423270866,1780009852000,-177.0,0.00028471,120]
[423270865,1780009852000,-1135.0,0.00028459,120]
[423270869,1780009852000,-409.0,0.00028481,120]
[423270859,1780009852000,-1748.0,0.00028342,120]
[423270877,1780009852000,-177.22369574,0.00028489,7]
[423270889,1780009852000,-161.23854864,0.00028494,7]
[423270868,1780009852000,-681.0,0.00028478,120]
[423270888,1780009852000,-205.68751899,0.00028494,7]
[423270878,1780009852000,-177.0941353,0.00028489,7]
[423270876,1780009852000,-151.86856401,0.00028486,2]
[423270873,1780009852000,-315.29273513,0.00028486,7]
[423270874,1780009852000,-260.71290582,0.00028486,7]
[423270875,1780009852000,-342.99911999,0.00028486,7]
[423270870,1780009852000,-188.48657328,0.00028482,7]
[423270871,1780009852000,-200.0,0.00028484,2]
[423270867,1780009852000,-262.66,0.00028476,3]
[423270872,1780009852000,-177.18393244,0.00028486,7]
[423270949,1780009853000,-500.0,0.00028767,120]
[423270954,1780009853000,-2664.0,0.00028767,120]
[423270951,1780009853000,-646.64306371,0.00028767,120]
[423270948,1780009853000,-500.0,0.00028767,120]
[423270947,1780009853000,-500.0,0.00028767,120]
[423270943,1780009853000,-500.0,0.00028767,120]
[423270945,1780009853000,-500.0,0.00028767,120]
[423270944,1780009853000,-500.0,0.00028767,120]
[423270946,1780009853000,-500.0,0.00028767,120]
[423270942,1780009853000,-500.0,0.00028767,120]
[423270953,1780009853000,-163.0,0.00028767,14]
[423270950,1780009853000,-500.0,0.00028767,120]
[423270963,1780009853000,-1149.77,0.00028806,30]
[423270966,1780009853000,-300.0,0.00028827,30]
[423270952,1780009853000,-2198.0,0.00028767,120]
[423270964,1780009853000,-1149.77,0.00028827,30]
[423270955,1780009853000,-500.0,0.00028768,7]
[423270958,1780009853000,-1149.77,0.00028786,30]
[423270961,1780009853000,-2000.0,0.000288,2]
[423270957,1780009853000,-222.0,0.0002878,120]
[423270960,1780009853000,-2558.5,0.000288,14]
[423270956,1780009853000,-200.0,0.00028769,2]
[423270959,1780009853000,-152.0,0.00028795,11]
[423270965,1780009853000,-1000.0,0.00028827,30]
[423270969,1780009853000,-150.0,0.00028855,2]
[423270971,1780009853000,-450.0,0.00028856,2]
[423270941,1780009853000,-1149.77,0.00028765,30]
[423270962,1780009853000,-617.6,0.00028805,120]
[423270939,1780009853000,-1155.99,0.00028726,2]
[423270914,1780009853000,-199.59755006,0.00028494,7]
[423270938,1780009853000,-1149.77,0.00028724,30]
[423270968,1780009853000,-1149.77,0.00028847,30]
[423270912,1780009853000,-159.01013664,0.00028494,7]
[423270911,1780009853000,-186.32957394,0.00028494,7]
[423270913,1780009853000,-205.47756705,0.00028494,7]
[423270915,1780009853000,-165.02368299,0.00028495,7]
[423270926,1780009853000,-4672.36,0.000286,7]
[423270917,1780009853000,-1149.77,0.000285,30]
[423270920,1780009853000,-1149.77,0.00028541,30]
[423270916,1780009853000,-152.19521763,0.00028495,7]
[423270918,1780009853000,-1149.77,0.0002852,30]
[423270925,1780009853000,-3640.04,0.000286,7]
[423270919,1780009853000,-344.0,0.00028521,120]
[423270922,1780009853000,-1149.77,0.00028561,30]
[423270923,1780009853000,-483.0,0.00028578,120]
[423270921,1780009853000,-423.30454585,0.00028555,7]
[423270924,1780009853000,-1149.77,0.00028582,30]
[423270929,1780009853000,-200.0,0.00028628,2]
[423270927,1780009853000,-1149.77,0.00028602,30]
[423270931,1780009853000,-1149.77,0.00028663,30]
[423270932,1780009853000,-165.0,0.00028679,120]
[423270933,1780009853000,-1149.77,0.00028684,30]
[423270930,1780009853000,-1149.77,0.00028643,30]
[423270934,1780009853000,-1542.91,0.000287,14]
[423270937,1780009853000,-207.0,0.00028722,120]
[423270935,1780009853000,-1149.77,0.00028704,30]
[423270928,1780009853000,-1149.77,0.00028622,30]
[423270936,1780009853000,-182.026508,0.00028721,7]
[423270940,1780009853000,-1149.77,0.00028745,30]
[423270967,1780009853000,-275.2353916,0.00028838,2]
[423270970,1780009853000,-150.0,0.00028855,2]
[423271031,1780009853000,-538.05,0.00029,2]
[423271006,1780009853000,-1847.53,0.00029,2]
[423271005,1780009853000,-1847.51,0.00029,2]
[423271007,1780009853000,-1847.51,0.00029,2]
[423271013,1780009853000,-930.01232202,0.00029,2]
[423271014,1780009853000,-151.014,0.00029,2]
[423271009,1780009853000,-515.60040678,0.00029,2]
[423271008,1780009853000,-1847.51,0.00029,2]
[423271012,1780009853000,-930.24644032,0.00029,2]
[423271011,1780009853000,-934.9288064,0.00029,2]
[423271010,1780009853000,-1028.57612805,0.00029,2]
[423271016,1780009853000,-200.0,0.00029,2]
[423271027,1780009853000,-1012.96,0.00029,2]
[423271015,1780009853000,-200.0,0.00029,2]
[423271004,1780009853000,-200.0,0.00029,2]
[423271017,1780009853000,-200.0,0.00029,2]
[423271021,1780009853000,-538.05,0.00029,2]
[423271023,1780009853000,-510.57656563,0.00029,2]
[423271020,1780009853000,-245.97,0.00029,2]
[423271019,1780009853000,-200.0,0.00029,2]
[423271025,1780009853000,-160.0,0.00029,30]
[423271024,1780009853000,-743.72456515,0.00029,2]
[423271022,1780009853000,-219.49784012,0.00029,2]
[423271032,1780009853000,-164.26224705,0.00029,30]
[423271028,1780009853000,-162.9638,0.00029,2]
[423271029,1780009853000,-538.05,0.00029,2]
[423271030,1780009853000,-538.05,0.00029,2]
[423270973,1780009853000,-519.63,0.00028879,120]
[423271033,1780009853000,-538.05,0.00029,2]
[423271018,1780009853000,-200.0,0.00029,2]
[423270997,1780009853000,-500.0,0.00028986,2]
[423271026,1780009853000,-538.05,0.00029,2]
[423271002,1780009853000,-200.0,0.00029,2]
[423270972,1780009853000,-1149.77,0.00028867,30]
[423271003,1780009853000,-200.0,0.00029,2]
[423270977,1780009853000,-150.0,0.00028897,2]
[423270975,1780009853000,-21152.0,0.0002888,2]
[423270976,1780009853000,-1149.77,0.00028888,30]
[423270979,1780009853000,-1149.77,0.00028929,30]
[423270986,1780009853000,-500.0,0.00028986,2]
[423270978,1780009853000,-1149.77,0.00028908,30]
[423270981,1780009853000,-1149.77,0.00028969,30]
[423270988,1780009853000,-500.0,0.00028986,2]
[423270984,1780009853000,-500.0,0.00028986,2]
[423270989,1780009853000,-500.0,0.00028986,2]
[423270980,1780009853000,-1149.77,0.00028949,30]
[423270987,1780009853000,-500.0,0.00028986,2]
[423270974,1780009853000,-560.67,0.00028879,30]
[423270982,1780009853000,-188.34675647,0.00028971,2]
[423270990,1780009853000,-500.0,0.00028986,2]
[423271000,1780009853000,-574.0,0.00028989,120]
[423270999,1780009853000,-500.0,0.00028986,2]
[423270996,1780009853000,-500.0,0.00028986,2]
[423270998,1780009853000,-500.0,0.00028986,2]
[423270994,1780009853000,-500.0,0.00028986,2]
[423271001,1780009853000,-1149.77,0.0002899,30]
[423270992,1780009853000,-500.0,0.00028986,2]
[423270993,1780009853000,-500.0,0.00028986,2]
[423270991,1780009853000,-500.0,0.00028986,2]
[423270983,1780009853000,-500.0,0.00028986,2]
[423270985,1780009853000,-500.0,0.00028986,2]
[423270995,1780009853000,-500.0,0.00028986,2]
[423271076,1780009854000,-2010.47368,0.00029,2]
[423271072,1780009854000,-2955.32573028,0.00029,2]
[423271074,1780009854000,-329.45390929,0.00029,2]
[423271070,1780009854000,-200.0,0.00029,2]
[423271073,1780009854000,-3673.78,0.00029,7]
[423271069,1780009854000,-356.86628721,0.00029,2]
[423271068,1780009854000,-400.0,0.00029,2]
[423271066,1780009854000,-152.0,0.00029,2]
[423271064,1780009854000,-152.0,0.00029,2]
[423271087,1780009854000,-500.0,0.00029011,2]
[423271067,1780009854000,-400.0,0.00029,2]
[423271071,1780009854000,-1763.23536633,0.00029,2]
[423271080,1780009854000,-2010.47368,0.00029,2]
[423271082,1780009854000,-1147.72,0.00029009,2]
[423271078,1780009854000,-2010.47368,0.00029,2]
[423271079,1780009854000,-2010.47368,0.00029,2]
[423271075,1780009854000,-500.0,0.00029,2]
[423271081,1780009854000,-410.33754117,0.00029,2]
[423271077,1780009854000,-2010.47368,0.00029,2]
[423271083,1780009854000,-1149.77,0.0002901,30]
[423271084,1780009854000,-500.0,0.00029011,2]
[423271085,1780009854000,-500.0,0.00029011,2]
[423271089,1780009854000,-500.0,0.00029011,2]
[423271090,1780009854000,-500.0,0.00029011,2]
[423271088,1780009854000,-500.0,0.00029011,2]
[423271065,1780009854000,-152.0,0.00029,2]
[423271086,1780009854000,-500.0,0.00029011,2]
[423271060,1780009854000,-980.87508599,0.00029,2]
[423271096,1780009854000,-1149.77,0.00029051,30]
[423271058,1780009854000,-3640.04,0.00029,7]
[423271035,1780009854000,-741.7915,0.00029,2]
[423271034,1780009854000,-538.05,0.00029,2]
[423271038,1780009854000,-2500.0,0.00029,2]
[423271036,1780009854000,-1114.79,0.00029,2]
[423271037,1780009854000,-1458.58356626,0.00029,2]
[423271039,1780009854000,-215.50460005,0.00029,30]
[423271041,1780009854000,-162.0545,0.00029,2]
[423271042,1780009854000,-1000.0,0.00029,2]
[423271048,1780009854000,-157.0,0.00029,2]
[423271043,1780009854000,-1000.0,0.00029,2]
[423271050,1780009854000,-157.0,0.00029,2]
[423271045,1780009854000,-2855.62,0.00029,7]
[423271047,1780009854000,-157.0,0.00029,2]
[423271044,1780009854000,-209.03147293,0.00029,7]
[423271046,1780009854000,-166.0,0.00029,2]
[423271049,1780009854000,-157.0,0.00029,2]
[423271040,1780009854000,-215.50460005,0.00029,7]
[423271052,1780009854000,-157.0,0.00029,2]
[423271051,1780009854000,-157.0,0.00029,2]
[423271062,1780009854000,-200.0,0.00029,2]
[423271063,1780009854000,-200.0,0.00029,2]
[423271053,1780009854000,-157.0,0.00029,2]
[423271056,1780009854000,-157.0,0.00029,2]
[423271054,1780009854000,-157.0,0.00029,2]
[423271055,1780009854000,-157.0,0.00029,2]
[423271061,1780009854000,-4672.36,0.00029,7]
[423271059,1780009854000,-555.28,0.00029,2]
[423271057,1780009854000,-159.0,0.00029,2]
[423271092,1780009854000,-500.0,0.00029011,2]
[423271098,1780009854000,-1149.77,0.00029071,30]
[423271152,1780009854000,-343.542757,0.00029378,7]
[423271134,1780009854000,-1149.77,0.00029357,30]
[423271127,1780009854000,-1149.77,0.00029276,30]
[423271128,1780009854000,-1149.77,0.00029296,30]
[423271124,1780009854000,-1149.77,0.00029235,30]
[423271129,1780009854000,-1542.91,0.000293,14]
[423271131,1780009854000,-1149.77,0.00029316,30]
[423271133,1780009854000,-1149.77,0.00029337,30]
[423271132,1780009854000,-1033.0,0.00029323,120]
[423271130,1780009854000,-152.0,0.00029308,12]
[423271137,1780009854000,-151.503986,0.00029378,7]
[423271135,1780009854000,-162.0,0.00029374,120]
[423271138,1780009854000,-1137.284718,0.00029378,7]
[423271140,1780009854000,-1137.284718,0.00029378,7]
[423271139,1780009854000,-151.503986,0.00029378,7]
[423271142,1780009854000,-151.503986,0.00029378,7]
[423271143,1780009854000,-1137.284718,0.00029378,7]
[423271144,1780009854000,-151.503976,0.00029378,7]
[423271136,1780009854000,-1149.77,0.00029378,30]
[423271147,1780009854000,-151.0,0.00029378,7]
[423271141,1780009854000,-151.0,0.00029378,7]
[423271146,1780009854000,-343.542752,0.00029378,7]
[423271148,1780009854000,-343.542752,0.00029378,7]
[423271145,1780009854000,-1137.28471922,0.00029378,7]
[423271150,1780009854000,-343.542752,0.00029378,7]
[423271151,1780009854000,-197.051243,0.00029378,7]
[423271153,1780009854000,-169.952748,0.00029378,7]
[423271149,1780009854000,-151.0,0.00029378,7]
[423271125,1780009854000,-1149.77,0.00029255,30]
[423271126,1780009854000,-245.0,0.00029266,120]
[423271091,1780009854000,-500.0,0.00029011,2]
[423271118,1780009854000,-1295.476588,0.00029153,7]
[423271123,1780009854000,-1149.77,0.00029214,30]
[423271095,1780009854000,-1149.77,0.00029031,30]
[423271094,1780009854000,-500.0,0.00029014,2]
[423271097,1780009854000,-200.0,0.00029059,2]
[423271093,1780009854000,-500.0,0.00029011,2]
[423271100,1780009854000,-787.7082288,0.00029088,2]
[423271110,1780009854000,-550.74,0.00029138,7]
[423271099,1780009854000,-17605.7991806,0.00029088,2]
[423271103,1780009854000,-200.0,0.000291,2]
[423271106,1780009854000,-1149.77,0.00029133,30]
[423271107,1780009854000,-1024.21,0.00029138,7]
[423271104,1780009854000,-402.77,0.000291,2]
[423271102,1780009854000,-1149.77,0.00029092,30]
[423271101,1780009854000,-842.3777312,0.00029088,2]
[423271105,1780009854000,-1149.77,0.00029112,30]
[423271109,1780009854000,-1001.11,0.00029138,7]
[423271120,1780009854000,-1149.77,0.00029153,30]
[423271117,1780009854000,-1295.476588,0.00029153,7]
[423271119,1780009854000,-1295.476584,0.00029153,7]
[423271112,1780009854000,-300.787183,0.00029153,7]